fUSD/lending_fUSD_20250405
["ID","MTS","AMOUNT","RATE_DAILY","PERIOD"]
[357163163,1743832250287,-630.35449724,0.00031347,2]
[357163164,1743832250296,-18829.26083144,0.0003143,4]
[357163165,1743832250305,-1389.03194385,0.00031458,2]
[357163166,1743832250315,-152.0,0.00031482,17]
[357163167,1743832250325,-150.0,0.00031506,2]
[357163168,1743832250335,-2092.73,0.00031507,2]
[357163169,1743832250344,-250.04,0.00031615,2]
[357163170,1743832250353,-250.04,0.00031624,2]
[357163171,1743832250362,-250.04,0.00031632,2]
[357163172,1743832250372,-250.04,0.0003164,2]
[357163173,1743832250380,-250.04,0.00031649,2]
[357163174,1743832250390,-250.04,0.00031657,2]
[357163175,1743832250399,-250.04,0.00031665,2]
[357163176,1743832250408,-250.04,0.00031674,2]
[357163177,1743832250418,-250.04,0.00031682,2]
[357163178,1743832250428,-250.04,0.0003169,2]
[357163179,1743832250437,-250.04,0.00031699,2]
[357163180,1743832250447,-772.39,0.00031702,2]
[357163181,1743832250456,-250.04,0.00031707,2]
[357163182,1743832250466,-250.04,0.00031715,2]
[357163183,1743832250475,-250.04,0.00031724,2]
[357163184,1743832250488,-250.04,0.00031732,2]
[357163185,1743832250497,-250.04,0.0003174,2]
[357163186,1743832250507,-250.04,0.00031749,2]
[357163187,1743832250516,-250.04,0.00031757,2]
[357163188,1743832250527,-784.96,0.0003176,2]
[357163189,1743832250536,-250.04,0.00031765,2]
[357163190,1743832250546,-250.04,0.00031774,2]
[357163191,1743832250555,-152.0,0.00031829,18]
[357163192,1743832250565,-152.19487373,0.00032,30]
[357163193,1743832250575,-200.0,0.00032044,2]
[357163194,1743832250584,-2966.33864102,0.000321,120]
[357163195,1743832250593,-2000.0,0.000321,2]
[357163196,1743832250602,-200.0,0.000321,2]
[357163197,1743832250610,-700.0,0.00032128,2]
[357163198,1743832250619,-152.0,0.00032177,19]
[357163199,1743832250628,-560.0,0.00032364,2]
[357163200,1743832250637,-200.0,0.00032421,2]
[357163201,1743832250647,-488.3741,0.00032454,2]
[357163202,1743832250659,-152.0,0.00032524,20]
[357163203,1743832250668,-694.1,0.00032646,2]
[357163204,1743832250678,-319.92,0.00032646,2]
[357163205,1743832250687,-200.0,0.00032745,2]
[357163206,1743832250697,-4637.95751222,0.000328,2]
[357163207,1743832250706,-152.0,0.00032871,21]
[357163208,1743832250716,-703.3278,0.00032875,2]
[357163209,1743832250726,-150.0,0.00032876,2]
[357163210,1743832250735,-38605.30689823,0.00032877,2]
[357163211,1743832250745,-330.23,0.00032877,2]
[357163212,1743832250754,-2092.73,0.00032877,2]
[357163213,1743832250763,-180.88915589,0.0003289,2]
[357163214,1743832250773,-350.0,0.000329,2]
[357163215,1743832250783,-1053.08806999,0.000329,30]
[357163216,1743832250793,-368.7964,0.000329,2]
[357163217,1743832250802,-580.0191,0.000329,2]
[357163218,1743832250812,-1611.6619,0.000329,2]
[357163219,1743832250821,-1400.0,0.000329,12]
[357163220,1743832250830,-4384.2325464,0.000329,2]
[357163221,1743832250840,-776.07225572,0.000329,4]
[357163222,1743832250851,-161.76,0.00032932,120]
[357163223,1743832250861,-690.81326776,0.00032975,2]
[357163224,1743832251028,-502.00081645,0.00032975,2]
[357163225,1743832251052,-5237.92916072,0.00032975,2]
[357163226,1743832251061,-212.385775,0.00032977,7]
[357163227,1743832251070,-1855.47222959,0.0003298,2]
[357163228,1743832251082,-646.85139686,0.0003298,2]
[357163235,1743832505828,-150.0,0.00021288,2]
[357163256,1743833431868,-300.0,0.00021287,2]
[357163257,1743833431878,-300.0,0.00021287,2]
[357163258,1743833431888,-1218.0785068,0.00021288,2]
[357163259,1743833431930,-67.1074932,0.00021288,2]
[357163260,1743833431940,-2042.0,0.00021288,2]
[357163261,1743833431949,-574.0,0.00021288,2]
[357163262,1743833431959,-1369.59,0.00021288,2]
[357163263,1743833431968,-1438.078,0.00021288,2]
[357163264,1743833431978,-790.0,0.00021288,2]
[357163265,1743833431988,-1277.869,0.00021288,2]
[357163266,1743833431997,-360.72740911,0.00021288,2]
[357163273,1743833437892,-1431.78816892,0.00021288,2]
[357163274,1743833437954,-2304.48442197,0.00021288,2]
[357163275,1743833437963,-912.619,0.00021288,2]
[357163276,1743833437972,-545.617,0.00021288,2]
[357163277,1743833437982,-152.88,0.00021288,2]
[357163278,1743833437992,-3954.0,0.00021288,2]
[357163279,1743833438001,-382.27594957,0.00021288,2]
[357163280,1743833438013,-468.72405043,0.00021288,2]
[357163281,1743833438023,-360.63918901,0.00023148,2]
[357163282,1743833438036,-59.36081099,0.00023148,2]
[357163283,1743833438050,-250.0,0.00023416,2]
[357163284,1743833438063,-250.0,0.00023416,2]
[357163285,1743833438074,-219.27594957,0.00023416,2]
[357163286,1743833438089,-30.72405043,0.00023416,2]
[357163287,1743833438098,-500.0,0.0002355,2]
[357163288,1743833438108,-168.31452083,0.00023925,2]
[357163292,1743833438250,-155.42771769,0.00023925,2]
[357163293,1743833438261,-1285.0,0.00024288,2]
[357163295,1743833438271,-2042.0,0.00024288,2]
[357163296,1743833438280,-574.0,0.00024288,2]
[357163297,1743833438289,-1366.0,0.00024288,2]
[357163298,1743833438298,-1435.0,0.00024288,2]
[357163299,1743833438307,-790.0,0.00024288,2]
[357163300,1743833438317,-1276.0,0.00024288,2]
[357163301,1743833438326,-4097.0,0.00024288,2]
[357163302,1743833438335,-909.0,0.00024288,2]
[357163303,1743833438345,-543.0,0.00024288,2]
[357163304,1743833438355,-151.0,0.00024288,2]
[357163305,1743833438364,-3954.0,0.00024288,2]
[357163306,1743833438374,-851.0,0.00024288,2]
[357163307,1743833438384,-200.0,0.000251,2]
[357163308,1743833438393,-587.0,0.00025173,2]
[357163309,1743833438402,-160.4,0.00026849,2]
[357163310,1743833438412,-200.0,0.000271,2]
[357163311,1743833438421,-1285.0,0.00027288,2]
[357163312,1743833438431,-2042.0,0.00027288,2]
[357163313,1743833438440,-572.0,0.00027288,2]
[357163314,1743833438449,-1366.0,0.00027288,2]
[357163315,1743833438459,-787.0,0.00027288,2]
[357163316,1743833438469,-1276.0,0.00027288,2]
[357163317,1743833438479,-4097.0,0.00027288,2]
[357163318,1743833438488,-909.0,0.00027288,2]
[357163319,1743833438498,-151.0,0.00027288,2]
[357163320,1743833438508,-3943.0,0.00027288,2]
[357163321,1743833438517,-182.0,0.00027288,2]
[357163322,1743833438527,-823.0,0.00027374,2]
[357163323,1743833438536,-150.99,0.00027397,2]
[357163324,1743833438545,-7782.86,0.00027397,2]
[357163325,1743833438555,-314.94,0.00027397,2]
[357163326,1743833438565,-500.0,0.00027686,5]
[357163327,1743833438574,-200.0,0.000281,2]
[357163328,1743833438584,-506.75246483,0.00029029,5]
[357163329,1743833438593,-200.0,0.000291,2]
[357163330,1743833438603,-709.49,0.00029707,2]
[357163331,1743833438612,-1152.0,0.00029769,2]
[357163332,1743833438622,-1737.85,0.0002978,2]
[357163333,1743833438631,-3282.88,0.00030082,2]
[357163334,1743833438641,-3282.88,0.0003009,2]
[357163335,1743833438650,-3282.88,0.00030098,2]
[357163336,1743833438660,-215.74,0.000301,2]
[357163337,1743833438669,-3282.88,0.00030106,2]
[357163338,1743833438679,-3282.88,0.00030114,2]
[357163339,1743833438688,-3282.88,0.00030122,2]
[357163340,1743833438698,-3983.23,0.00030128,2]
[357163341,1743833438707,-3282.88,0.0003013,2]
[357163342,1743833438716,-3282.88,0.00030138,2]
[357163343,1743833438726,-3282.88,0.00030145,2]
[357163344,1743833438737,-3282.88,0.00030153,2]
[357163345,1743833438746,-3282.88,0.00030161,2]
[357163346,1743833438756,-3282.88,0.00030169,2]
[357163347,1743833438766,-159.9,0.00030175,2]
[357163348,1743833438776,-159.95,0.00030175,2]
[357163349,1743833438786,-3282.88,0.00030177,2]
[357163350,1743833438796,-3282.88,0.00030185,2]
[357163351,1743833438806,-6989.19013165,0.00030188,2]
[357163352,1743833438815,-3282.88,0.00030193,2]
[357163353,1743833438825,-3282.88,0.00030201,2]
[357163354,1743833438834,-3282.88,0.00030209,2]
[357163355,1743833438844,-3282.88,0.00030217,2]
[357163356,1743833438853,-3282.88,0.00030225,2]
[357163357,1743833438863,-200.0,0.00030227,2]
[357163358,1743833438873,-500.0,0.00030227,2]
[357163359,1743833438882,-3282.88,0.00030233,2]
[357163360,1743833438893,-1285.0,0.00030288,2]
[357163361,1743833438902,-2038.0,0.00030288,2]
[357163362,1743833438911,-1611.739,0.00030288,2]
[357163363,1743833438921,-909.0,0.00030288,2]
[357163364,1743833438931,-151.72,0.00030312,2]
[357163365,1743833438940,-1000.0,0.00030452,2]
[357163366,1743833438950,-780.83,0.00030493,2]
[357163367,1743833438959,-23900.0,0.00030586,2]
[357163368,1743833438969,-3947.08,0.00030696,2]
[357163369,1743833438978,-664.42,0.00030706,2]
[357163370,1743833438989,-1038.17,0.00030776,2]
[357163371,1743833438999,-200.0,0.00031,2]
[357163372,1743833439008,-2000.0,0.00031051,5]
[357163373,1743833439019,-184.88,0.00031161,2]
[357163374,1743833439029,-1852.42,0.00031474,2]
[357163375,1743833439038,-833.65,0.00031527,2]
[357163376,1743833439047,-213.0,0.00031602,2]
[357163377,1743833439056,-2000.0,0.00031602,2]
[357163378,1743833439071,-1910.18003387,0.000317,2]
[357163379,1743833439104,-5079.01009773,0.000317,2]
[357163380,1743833439115,-3731.27,0.00031711,2]
[357163381,1743833439124,-190.22,0.00031723,2]
[357163382,1743833439134,-1718.14,0.00031762,2]
[357163383,1743833439145,-521.97762035,0.00031932,26]
[357163384,1743833439154,-419.407496,0.0003199,4]
[357163385,1743833439164,-250.0,0.00031999,2]
[357163386,1743833439173,-185.09581627,0.00032,2]
[357163387,1743833439182,-780.83,0.00032018,2]
[357163388,1743833439192,-449.61,0.00032032,31]
[357163389,1743833439201,-2751.0,0.00032032,120]
[357163390,1743833439219,-191.8839885,0.00032032,31]
[357163391,1743833439238,-1737.85,0.00032044,2]
[357163392,1743833439256,-150.0,0.00032094,7]
[357163393,1743833439266,-1613.0,0.00032372,2]
[357163394,1743833439275,-152.0,0.00032402,3]
[357163395,1743833439285,-178.97,0.00032463,120]
[357163396,1743833439295,-164.01,0.00032591,2]
[357163397,1743833439304,-150.0,0.00032616,2]
[357163398,1743833439313,-909.0,0.0003264,2]
[357163399,1743833439323,-1546.14,0.00032665,2]
[357163400,1743833439332,-1000.0,0.00032699,2]
[357163401,1743833439341,-1400.0,0.000328,11]
[357163402,1743833439350,-12312.8093916,0.00032853,2]
[357163411,1743833440054,-309.90335189,0.00032853,2]
[357163412,1743833440167,-5904.70881,0.00032853,2]
[357163413,1743833440179,-1179.58421623,0.00032853,2]
[357163414,1743833440190,-2708.1404814,0.00032853,2]
[357163416,1743833442949,-1119.0,0.00022573,2]
[357163417,1743833442959,-1119.0,0.00025573,2]
[357163418,1743833442968,-11205.84978772,0.00032853,2]
[357163419,1743833442980,-4430.0000001,0.00032853,2]
[357163420,1743833443006,-2418.0001,0.00032853,2]
[357163435,1743833445930,-1119.0,0.00028573,2]
[357163436,1743833445940,-31.00001,0.00031573,2]
[357163437,1743833446061,-23.02421204,0.00031573,2]
[357163438,1743833446162,-318.33091079,0.00031573,2]
[357163439,1743833446177,-746.64486717,0.00031573,2]
[357163440,1743833446188,-2673.51386106,0.00032853,2]
[357163441,1743833446197,-501.20311468,0.00032873,5]
[357163442,1743833446208,-66329.55,0.00032877,2]
[357163443,1743833446218,-25139.75670815,0.0003289,2]
[357163444,1743833446227,-159.17867154,0.0003289,6]
[357163445,1743833446237,-265.9975,0.0003289,2]
[357163446,1743833446247,-338.7505064,0.000329,2]
[357163447,1743833446256,-171.53127834,0.000329,4]
[357163448,1743833446265,-2800.0,0.000329,12]
[357163449,1743833446275,-161.76,0.00032932,120]
[357163450,1743833446284,-500.0,0.00032973,5]
[357163451,1743833446294,-500.0,0.00032973,5]
[357163452,1743833446303,-500.0,0.00032973,5]
[357163453,1743833446313,-161.4163894,0.00032973,5]
[357163454,1743833446323,-540.144209,0.00032973,5]
[357163455,1743833446332,-500.83248115,0.00032973,5]
[357163456,1743833446341,-501.95943097,0.00032973,5]
[357163457,1743833446351,-501.28566036,0.00032973,5]
[357163458,1743833446360,-500.0,0.00032973,5]
[357163459,1743833446369,-528.5577952,0.00032976,2]
[357163460,1743833446378,-6947.5412238,0.00032976,2]
[357163461,1743833446387,-548.4003936,0.00032976,2]
[357163462,1743833446397,-11319.6885903,0.00032977,2]
[357163463,1743833446406,-3826.1705073,0.00032977,2]
[357163464,1743833446415,-200.0,0.0003298,2]
[357163465,1743833446425,-200.0,0.0003298,2]
[357163466,1743833446434,-200.0,0.0003298,2]
[357163467,1743833446443,-500.0,0.0003298,2]
[357163468,1743833446453,-55513.0745707,0.0003298,2]
[357163469,1743833446463,-151.28,0.0003298,2]
[357163470,1743833446473,-151.28,0.0003298,2]
[357163471,1743833446482,-151.28,0.0003298,2]
[357163472,1743833446491,-296069.731044,0.0003299,2]
[357163473,1743833446501,-207054.277869,0.0003299,2]
[357163474,1743833446510,-205.22690017,0.0003299,2]
[357163475,1743833446519,-151.28,0.0003299,2]
[357163476,1743833446529,-151.28,0.0003299,2]
[357163477,1743833446538,-151.28,0.0003299,2]
[357163478,1743833446547,-312.94997787,0.00032999,10]
[357163480,1743833446556,-786.0,0.00033,5]
[357163482,1743833446565,-25042.19760144,0.00033,2]
[357163484,1743833446574,-570999.2452098,0.00033,2]
[357163486,1743833446583,-573.92378721,0.00033,2]
[357163488,1743833446593,-1011.0,0.00033,7]
[357163490,1743833446603,-1000.0,0.00033104,2]
[357163492,1743833446613,-760.5672,0.00033118,10]
[357163493,1743833446622,-500.0,0.00033165,5]
[357163494,1743833446633,-5050.10433827,0.00033188,2]
[357163495,1743833446642,-18504.3581902,0.00033208,2]
[357163496,1743833446651,-15150.3130148,0.00033208,2]
[357163497,1743833446661,-151.28,0.00033208,2]
[357163498,1743833446671,-6989.1901316,0.00033213,2]
[357163499,1743833446680,-37008.7163805,0.00033217,2]
[357163500,1743833446690,-25250.5216914,0.00033217,2]
[357163501,1743833446700,-51347.58,0.00033227,2]
[357163502,1743833446709,-500.0,0.00033273,5]
[357163503,1743833446718,-504.83952631,0.00033273,5]
[357163504,1743833446728,-200.0,0.0003331,2]
[357163505,1743833446737,-200.0,0.0003331,2]
[357163506,1743833446747,-200.0,0.0003331,2]
[357163507,1743833446757,-1164.90677295,0.000335,2]
[357163508,1743833446767,-780.83,0.00033543,2]
[357163509,1743833446777,-200.0,0.00033643,2]
[357163510,1743833446787,-200.0,0.00033643,2]
[357163511,1743833446796,-2312.56,0.00033644,2]
[357163512,1743833446806,-200.0,0.00033979,2]
[357163513,1743833446815,-200.0,0.00033979,2]
[357163514,1743833446825,-5050.10433827,0.0003399,2]
[357163515,1743833446835,-1000.0,0.00033993,2]
[357163516,1743833446845,-1000.0,0.00033993,2]
[357163517,1743833446855,-503.0,0.00034,60]
[357163518,1743833446865,-3983.45243761,0.00034,3]
[357163519,1743833446874,-3989.64201743,0.00034,2]
[357163520,1743833446884,-10100.2086765,0.00034135,2]
[357163521,1743833446894,-18504.3581902,0.00034168,2]
[357163522,1743833446903,-10100.2086765,0.00034168,2]
[357163523,1743833446913,-151.28,0.00034168,2]
[357163524,1743833446924,-5050.10433827,0.00034171,2]
[357163525,1743833446935,-25139.75670808,0.00034178,2]
[357163526,1743833446946,-1000.0,0.00034258,2]
[357163527,1743833446955,-5050.10433827,0.00034298,2]
[357163528,1743833446965,-1737.85,0.00034308,2]
[357163529,1743833446974,-200.0,0.00034319,2]
[357163530,1743833446983,-200.0,0.00034319,2]
[357163531,1743833446993,-200.0,0.00034414,120]
[357163532,1743833447002,-150.0,0.00034548,10]
[357163533,1743833447012,-5050.10433827,0.0003456,2]
[357163534,1743833447021,-15150.3130148,0.0003457,2]
[357163535,1743833447031,-1114.0,0.00034573,2]
[357163536,1743833447040,-224.1791144,0.0003459,2]
[357163537,1743833447050,-33164.75,0.000346,2]
[357163538,1743833447061,-152.0,0.0003464,4]
[357163539,1743833447073,-429.47501133,0.000347,2]
[357163540,1743833447083,-66329.5,0.000347,2]
[357163541,1743833447092,-2000.0,0.00034723,5]
[357163542,1743833447102,-6989.1901316,0.00034725,2]
[357163543,1743833447113,-819.8,0.00034731,51]
[357163544,1743833447122,-1000.0,0.00034746,2]
[357163545,1743833447132,-1000.0,0.00034774,2]
[357163546,1743833447142,-150.0,0.00034786,2]
[357163547,1743833447151,-166.0,0.00034795,2]
[357163548,1743833447161,-4200.0,0.000348,12]
[357163549,1743833447170,-1270.977257,0.000348,7]
[357163550,1743833447181,-1270.977257,0.000348,7]
[357163551,1743833447190,-151.28,0.0003487,2]
[357163552,1743833447199,-151.28,0.0003487,2]
[357163553,1743833447209,-151.28,0.0003487,2]
[357163554,1743833447218,-150.0,0.00034879,2]
[357163555,1743833447227,-487743.0,0.0003488,30]
[357163556,1743833447239,-153.638988,0.0003488,7]
[357163557,1743833447249,-151.0,0.0003488,7]
[357163558,1743833447259,-151.0,0.0003488,7]
[357163559,1743833447268,-208.386493,0.0003488,7]
[357163560,1743833447278,-151.0,0.0003488,7]
[357163561,1743833447288,-151.0,0.0003488,7]
[357163562,1743833447298,-262.940086,0.0003488,7]
[357163563,1743833447308,-197.835718,0.0003488,7]
[357163564,1743833447317,-151.0,0.0003488,7]
[357163565,1743833447327,-151.0,0.0003488,7]
[357163566,1743833447336,-165.902384,0.0003488,7]
[357163567,1743833447347,-151.0,0.0003488,7]
[357163568,1743833447357,-151.0,0.0003488,7]
[357163569,1743833447367,-152.120684,0.0003488,7]
[357163570,1743833447376,-151.0,0.0003488,7]
[357163571,1743833447388,-153.521798,0.0003488,7]
[357163572,1743833447397,-151.0,0.0003488,7]
[357163573,1743833447407,-151.0,0.0003488,7]
[357163574,1743833447417,-151.0,0.0003488,7]
[357163575,1743833447426,-151.0,0.0003488,7]
[357163576,1743833447435,-151.0,0.0003488,7]
[357163577,1743833447444,-151.0,0.0003488,7]
[357163578,1743833447454,-918.501581,0.0003488,7]
[357163579,1743833447578,-152.536737,0.0003488,7]
[357163580,1743833447588,-151.0,0.0003488,7]
[357163581,1743833447598,-151.0,0.0003488,7]
[357163582,1743833447607,-243.214052,0.0003488,7]
[357163583,1743833447617,-151.0,0.0003488,7]
[357163584,1743833447627,-151.0,0.0003488,7]
[357163585,1743833447636,-151.0,0.0003488,7]
[357163586,1743833447646,-153.902649,0.0003488,7]
[357163587,1743833447655,-152.749662,0.0003488,7]
[357163588,1743833447664,-151.0,0.0003488,7]
[357163589,1743833447673,-287.092095,0.0003488,7]
[357163590,1743833447682,-1270.977257,0.0003488,7]
[357163591,1743833447691,-1270.977257,0.0003488,7]
[357163592,1743833447700,-5600.0,0.000349,12]
[357163593,1743833447710,-500.0,0.0003493,7]
[357163594,1743833447719,-500.0,0.0003493,7]
[357163595,1743833447727,-500.0,0.0003493,7]
[357163596,1743833447737,-500.0,0.0003493,7]
[357163597,1743833447751,-500.0,0.0003493,7]
[357163598,1743833447761,-500.0,0.0003493,7]
[357163599,1743833447771,-500.0,0.0003493,7]
[357163600,1743833447781,-500.0,0.0003493,7]
[357163601,1743833447791,-500.0,0.0003493,7]
[357163602,1743833447800,-500.0,0.0003493,7]
[357163603,1743833447810,-500.0,0.0003493,7]
[357163604,1743833447820,-500.0,0.0003493,7]
[357163605,1743833447829,-500.0,0.0003493,7]
[357163606,1743833447839,-500.0,0.0003493,7]
[357163607,1743833447849,-500.0,0.0003493,7]
[357163608,1743833447858,-500.0,0.0003493,7]
[357163609,1743833447867,-500.0,0.0003493,7]
[357163610,1743833447877,-500.0,0.0003493,7]
[357163611,1743833447886,-500.0,0.0003493,7]
[357163612,1743833447896,-500.0,0.0003493,7]
[357163613,1743833447905,-500.0,0.0003493,7]
[357163614,1743833447914,-500.0,0.0003493,7]
[357163615,1743833447925,-500.0,0.0003493,7]
[357163616,1743833447934,-500.0,0.0003493,7]
[357163617,1743833447946,-500.0,0.0003493,7]
[357163618,1743833447956,-500.0,0.0003493,7]
[357163619,1743833447968,-500.0,0.0003493,7]
[357163620,1743833447977,-500.0,0.0003493,7]
[357163621,1743833447986,-500.0,0.0003493,7]
[357163622,1743833447996,-500.0,0.0003493,7]
[357163623,1743833448007,-500.0,0.0003493,7]
[357163624,1743833448016,-500.0,0.0003493,7]
[357163625,1743833448026,-500.0,0.0003493,7]
[357163626,1743833448035,-500.0,0.0003493,7]
[357163627,1743833448044,-500.0,0.0003493,7]
[357163628,1743833448053,-500.0,0.0003493,7]
[357163629,1743833448062,-439.09,0.0003493,7]
[357163630,1743833448074,-500.0,0.0003493,7]
[357163631,1743833448083,-500.0,0.0003493,7]
[357163632,1743833448092,-500.0,0.0003493,7]
[357163633,1743833448102,-500.0,0.0003493,7]
[357163634,1743833448111,-500.0,0.0003493,7]
[357163635,1743833448120,-500.0,0.0003493,7]
[357163636,1743833448130,-500.0,0.0003493,7]
[357163637,1743833448139,-500.0,0.0003493,7]
[357163638,1743833448148,-278.94,0.0003493,7]
[357163639,1743833448158,-500.0,0.0003493,7]
[357163640,1743833448167,-150.0,0.00034934,2]
[357163641,1743833448176,-150.0,0.00034959,2]
[357163642,1743833448186,-151.28,0.00034966,2]
[357163643,1743833448195,-9296.7232206,0.00034976,2]
[357163644,1743833448204,-3136.8962161,0.00034976,2]
[357163645,1743833448213,-528.5577952,0.00034976,2]
[357163646,1743833448223,-5686.1178369,0.00034976,2]
[357163647,1743833448232,-548.4003936,0.00034976,2]
[357163648,1743833448242,-151.28,0.0003499,2]
[357163649,1743833448251,-151.28,0.0003499,2]
[357163650,1743833448261,-151.28,0.0003499,2]
[357163651,1743833448270,-168.97733894,0.00035,30]
[357163652,1743833448280,-226.81808156,0.00035,2]
[357163653,1743833448290,-789.88333117,0.00035,2]
[357163654,1743833448299,-405260.63951994,0.00035,2]
[357163655,1743833448523,-238310.09727471,0.00035,2]
[357163656,1743833448533,-924.4870533,0.00035,40]
[357163657,1743833448543,-168.08,0.00035,2]
[357163658,1743833448553,-152.041083,0.00035,7]
[357163659,1743833448563,-151.0,0.00035,7]
[357163660,1743833448572,-209.442292,0.00035,7]
[357163661,1743833448582,-209.442292,0.00035,7]
[357163662,1743833448591,-151.0,0.00035,7]
[357163663,1743833448600,-151.0,0.00035,7]
[357163664,1743833448610,-151.0,0.00035,7]
[357163665,1743833448619,-159.947432,0.00035,7]
[357163666,1743833448629,-151.0,0.00035,7]
[357163667,1743833448638,-151.0,0.00035,7]
[357163668,1743833448647,-151.0,0.00035,7]
[357163669,1743833448656,-152.779661,0.00035,7]
[357163670,1743833448666,-151.0,0.00035,7]
[357163671,1743833448676,-151.0,0.00035,7]
[357163672,1743833448685,-158.434415,0.00035,7]
[357163673,1743833448695,-151.0,0.00035,7]
[357163674,1743833448704,-151.0,0.00035,7]
[357163675,1743833448714,-151.0,0.00035,7]
[357163676,1743833448723,-151.0,0.00035,7]
[357163677,1743833448733,-169.15939,0.00035,7]
[357163678,1743833448742,-162.17373,0.00035,7]
[357163679,1743833448752,-151.0,0.00035,7]
[357163680,1743833448761,-151.0,0.00035,7]
[357163681,1743833448771,-151.0,0.00035,7]
[357163682,1743833448780,-151.0,0.00035,7]
[357163683,1743833448790,-154.899195,0.00035,7]
[357163684,1743833448800,-151.667315,0.00035,7]
[357163685,1743833448810,-166.0,0.00035,2]
[357163686,1743833448820,-154.962858,0.00035,7]
[357163687,1743833448830,-159.992349,0.00035,7]
[357163688,1743833448840,-151.0,0.00035,7]
[357163689,1743833448850,-151.0,0.00035,7]
[357163690,1743833448860,-214.285703,0.00035,7]
[357163691,1743833448870,-151.0,0.00035,7]
[357163692,1743833448880,-151.0,0.00035,7]
[357163693,1743833448890,-151.0,0.00035,7]
[357163694,1743833448900,-151.0,0.00035,7]
[357163695,1743833448909,-151.0,0.00035,7]
[357163696,1743833448919,-151.0,0.00035,7]
[357163697,1743833448929,-151.0,0.00035,7]
[357163698,1743833448939,-262.940086,0.00035,7]
[357163699,1743833448948,-151.0,0.00035,7]
[357163700,1743833448958,-151.0,0.00035,7]
[357163701,1743833448968,-151.0,0.00035,7]
[357163702,1743833448977,-151.0,0.00035,7]
[357163703,1743833448988,-151.0,0.00035,7]
[357163704,1743833448998,-151.0,0.00035,7]
[357163705,1743833449008,-151.0,0.00035,7]
[357163706,1743833449017,-154.429138,0.00035,7]
[357163707,1743833449027,-161.794107,0.00035,7]
[357163708,1743833449038,-151.0,0.00035,7]
[357163709,1743833449048,-151.0,0.00035,7]
[357163710,1743833449058,-918.501581,0.00035,7]
[357163711,1743833449071,-151.0,0.00035,7]
[357163712,1743833449081,-154.874626,0.00035,7]
[357163713,1743833449091,-163.211562,0.00035,7]
[357163714,1743833449100,-151.0,0.00035,7]
[357163715,1743833449111,-151.0,0.00035,7]
[357163716,1743833449121,-1270.977257,0.00035,7]
[357163717,1743833449131,-1270.977257,0.00035,7]
[357163718,1743833449140,-200.0,0.00035,120]
[357163719,1743833449150,-150.919,0.00035,30]
[357163720,1743833449160,-150.0,0.00035025,2]
[357163721,1743833449170,-780.83,0.00035067,2]
[357163722,1743833449179,-151.28,0.00035081,2]
[357163723,1743833449189,-7532.264379,0.00035091,7]
[357163724,1743833449199,-2818.244273,0.00035091,7]
[357163725,1743833449209,-910.852728,0.00035091,7]
[357163726,1743833449218,-889.29321114,0.00035101,7]
[357163727,1743833449227,-150.0,0.00035108,2]
[357163728,1743833449237,-150.0,0.0003511,2]